Cogmind - Beta 12 @@@ ROGUE MODE // 2023.05.17 @ 00:38:54 Player: maxwell Result: Destroyed by as-61537 with Assembled Rifle Performance ------------- Evolutions (0) 0 Regions Visited (2) 400 Robots Destroyed (27) 135 Value Destroyed (684) 684 Prototype IDs (3) 60 Alien Tech Used (0) 0 Bonus (0) 0 TOTAL SCORE: 1279 Bonus ------- None Cogmind --------- Core Integrity 0/250 Matter 255/300 Energy 125/125 System Corruption 6% Temperature Cool (0) Movement Treading (320) Ox2 Location -10/Mines Parts ------- > --- POWER (1) -------- Light Ion Engine > --- PROPULSION (2) --- Light Treads Light Treads > --- UTILITY (2) ------ Huge Storage Unit Splice Drone Bay (6/6) > --- WEAPON (2) ------- Light Assault Rifle Light Assault Rifle > --- INVENTORY (25) --- Light Treads Compact Wheel Compact Wheel Huge Storage Unit High-capacity Matter Pod (200) Shield Generator Shield Generator Shield Generator Shield Generator Shield Generator Shield Generator Shield Generator Shield Generator Shield Generator Shield Generator Shield Generator Shield Generator Light Assault Rifle Grenade Launcher Peak State ------------ > --- POWER ------------ Light Ion Engine > --- PROPULSION ------- Light Treads Light Treads > --- UTILITY ---------- Huge Storage Unit Splice Drone Bay > --- WEAPON ----------- Light Assault Rifle Light Assault Rifle > --- INVENTORY -------- Light Treads Compact Wheel Compact Wheel Huge Storage Unit High-capacity Matter Pod Shield Generator Shield Generator Shield Generator Shield Generator Shield Generator Shield Generator Shield Generator Shield Generator Shield Generator Shield Generator Shield Generator Shield Generator Light Assault Rifle Grenade Launcher [Rating: 16] Favorites ----------- Power Light Ion Engine Engine Light Ion Engine Propulsion Light Treads Treads Light Treads Leg Aluminum Leg Utility Huge Storage Unit Device Shield Generator Storage Huge Storage Unit Protection Core Shielding Weapon Light Assault Rifle Ballistic Gun Light Assault Rifle Launcher Grenade Launcher Build | -11 -10 -10 ------- Run | Jun Mat Min Slots Evolved . | . . . Power . | . . . Propulsion . | . . . Utility . | . . . Weapon . | . . . Parts Attached 23 | . 19 4 Power 2 | . 1 1 Engine 2 | . 1 1 Core . | . . . Reactor . | . . . Propulsion 5 | . 5 . Treads 5 | . 5 . Leg . | . . . Wheel . | . . . Hover . | . . . Flight . | . . . Utility 7 | . 4 3 Device 4 | . 1 3 Storage 2 | . 2 . Processor . | . . . Hackware . | . . . Protection 1 | . 1 . Artifact . | . . . Weapon 9 | . 9 . Energy Gun . | . . . Energy Cannon . | . . . Ballistic Gun 6 | . 6 . Ballistic Cannon . | . . . Launcher 3 | . 3 . Special Weapon . | . . . Impact Weapon . | . . . Slashing Weapon . | . . . Piercing Weapon . | . . . Special Melee Weapon . | . . . Unidentified Prototypes 1 | . . 1 Parts Lost 8 | . 8 . Power 2 | . 2 . Propulsion 2 | . 2 . Utility 1 | . 1 . Weapon 3 | . 3 . Highest Loss Streak 2 | . 2 . To Critical Strikes . | . . . Average Slot Usage (%) 88 | . 85 97 Engine 9 | . 8 11 Treads 27 | . 27 28 Device 6 | . 2 14 Storage 14 | . 14 14 Protection 1 | . 2 . Ballistic Gun 26 | . 26 28 Launcher 1 | . 1 . Naked Turns . | . . . Heaviest Build 93 | 11 85 93 Greatest Support 40 | 20 40 40 Greatest Overweight (x) 2 | . 2 2 Average Overweight (x) 1 | . . 2 Largest Inventory Capacity 25 | . 25 25 Average Capacity 19 | . 17 25 Most Carried 19 | . 19 19 Average Carried 12 | . 9 18 Final Capacity 25 | 8 25 25 Final Carried 19 | 6 18 19 Class Distribution -------------------- 100% | Mutant Dominant Class ---------------- Mutant | -10/Materials Mutant | -10/Mines Resources | -11 -10 -10 ----------- Run | Jun Mat Min Matter Collected 925 | 179 546 200 Remotely . | . . . Salvage Created 795 | . 795 . Parts 49 | . 49 . Haulers Intercepted 2 | . 2 . Recyclers Shooed . | . . . Parts Field Recycled . | . . . Retrieved Matter . | . . . Parts Self-Destructed . | . . . Prevented . | . . . Kills | -11 -10 -10 ------- Run | Jun Mat Min Combat Hostiles Destroyed 23 | . 23 . Guns 14 | . 14 . AOE 9 | . 9 . Classes Destroyed 5 | . 5 . Hauler 2 | . 2 . Mechanic 1 | . 1 . Watcher 1 | . 1 . Swarmer 6 | . 6 . Grunt 17 | . 17 . Best Kill Streak 4 | . 4 . Combat Bots Only 3 | . 3 . Max Kills in Single Turn 3 | . 3 . Gunslinging . | . . . Exploded 2 | . 2 . Melee . | . . . Uniques/NPCs Destroyed . | . . . Combat | -11 -10 -10 -------- Run | Jun Mat Min Damage Taken 1255 | . 1208 47 Core 262 | . 249 13 Absorbed by Shields 21 | . 21 . Core Remaining (%) 100 | 100 . . Volleys Fired 90 | . 90 . Largest 2 | . 2 . Hottest 40 | . 40 . Shots Fired 168 | . 168 . Gun 155 | . 155 . Cannon . | . . . Launcher 13 | . 13 . Special . | . . . Kinetic 155 | . 155 . Thermal . | . . . Explosive 13 | . 13 . Electromagnetic . | . . . Robot Hit Streak 17 | . 17 . Robot Miss Streak 4 | . 4 . Penetration Max . | . . . Secondary Targets 2 | . 2 . Max Gunslinging Chain 1 | . 1 . Shots Hit Robots 96 | . 96 . Core Hits 56 | . 56 . Critical Kills . | . . . Critical Parts Destroyed 1 | . 1 . Critical Strikes 1 | . 1 . Destroy 1 | . 1 . Melee Attacks . | . . . Impact . | . . . Slashing . | . . . Piercing . | . . . Sneak Attacks . | . . . Combat Hostiles . | . . . Follow-up Attacks . | . . . Damage Inflicted 1575 | . 1573 2 Guns 855 | . 855 . Cannons . | . . . Explosions 718 | . 718 . Melee . | . . . Ramming 2 | . . 2 Kinetic 855 | . 855 . Thermal . | . . . Explosive 718 | . 718 . Electromagnetic . | . . . Impact . | . . . Slashing . | . . . Piercing . | . . . Highest Corruption 6 | . 6 6 Average Corruption 6 | . 6 6 Corruption Purged . | . . . Corruption Blocked . | . . . Effects 53 | . 35 18 Message Errors 12 | . 6 6 Matter Fused 12 | . 7 5 Heat Flow Errors 7 | . 6 1 Energy Discharges 5 | . 1 4 Parts Rejected 2 | . 2 . Data Loss (minor) 4 | . 3 1 Data Loss (major) 3 | . 3 . Misfires 4 | . 4 . Alerts 1 | . . 1 Weapon Failures 3 | . 3 . Overload Shots . | . . . Overflow Damage 6 | . 6 . Projectiles . | . . . Explosions 6 | . 6 . Melee . | . . . Knockbacks . | . . . Impact . | . . . Kinetic . | . . . Secondary . | . . . Self-Inflicted Damage 56 | . 56 . Shots 2 | . 2 . Rammed 1 | . . 1 Targets Rammed 1 | . . 1 Kicked . | . . . Crushed . | . . . Highest Temperature 263 | . 263 117 Average Temperature 61 | . 61 59 Received Heat Transfer 412 | . 412 . Siege Activations . | . . . Robots Corrupted . | . . . Combat Hostiles . | . . . Parts Fried . | . . . Impact Corruptions . | . . . Robots Melted . | . . . Combat Hostiles . | . . . Parts Melted . | . . . Heat Transferred . | . . . Parts Sabotaged . | . . . Parts Stolen . | . . . Parts Stripped . | . . . Power Chain Reactions . | . . . Missiles Intercepted . | . . . Alert | -11 -10 -10 ------- Run | Jun Mat Min Peak Influence 287 | . 287 103 Initial 103 | . . 103 Average 144 | . 180 61 Maximum Alert Level 1 | . 1 . Low Security (%) 65 | . 50 100 Level 1 34 | . 49 . Level 2 . | . . . Level 3 . | . . . Level 4 . | . . . Level 5 . | . . . High Security . | . . . Max Security . | . . . Squads Dispatched 5 | . 5 . Investigation 4 | . 4 . Extermination . | . . . Reinforcement 1 | . 1 . Assault . | . . . Garrison . | . . . Intercept . | . . . Searches Triggered . | . . . Construction Impeded . | . . . Haulers Reinforced . | . . . Active Scanning Responses . | . . . Cargo Convoy Interrupts . | . . . Stealth | -11 -10 -10 --------- Run | Jun Mat Min Distress Signals . | . . . Communications Jammed . | . . . Distress Signals . | . . . Times Spotted 37 | . 35 2 Peak Tracking Total 4 | . 4 1 Tactical Retreats 1 | . 1 . Traps | -11 -10 -10 ------- Run | Jun Mat Min Traps Triggered . | . . . Indirectly . | . . . Trap Hack Attempts . | . . . Triggered . | . . . Disarmed . | . . . Reprogrammed . | . . . Reused . | . . . Traps Extracted . | . . . Installed . | . . . Triggered . | . . . Machines | -11 -10 -10 ---------- Run | Jun Mat Min Machines Disabled . | . . . Max in Single Turn . | . . . Machines Repaired . | . . . Machines Sabotaged . | . . . Overloaded Fab Kills . | . . . Hacking | -11 -10 -10 --------- Run | Jun Mat Min Machines Accessed 9 | . 8 1 Terminals 6 | . 6 . Fabricators . | . . . Repair Stations . | . . . Recycling Units 2 | . 2 . Scanalyzers . | . . . Garrison Access . | . . . Total Hacks 28 | . 27 1 Successful 14 | . 13 1 Failed 14 | . 14 . Catastrophic 1 | . 1 . Database Lockouts . | . . . Manual 26 | . 26 . Terminals 25 | . 25 . Fabricators . | . . . Repair Stations . | . . . Recycling Units 2 | . 2 . Scanalyzers . | . . . Garrison Access . | . . . Terminal Hacks 7 | . 6 1 Part Schematic 2 | . 2 . Robot Analysis 2 | . 2 . Prototype ID Bank 1 | . 1 . Open Door 1 | . . 1 Terminal Index 1 | . 1 . Fabricator Hacks . | . . . Repair Station Hacks . | . . . Recycling Unit Hacks . | . . . Scanalyzer . | . . . Garrison Access Hacks . | . . . Unauthorized Hacks 7 | . 7 . Terminals 5 | . 5 . Assimilate 1 | . 1 . Botnet 2 | . 2 . Operators 2 | . 2 . Fabricators . | . . . Repair Stations . | . . . Recycling Units 2 | . 2 . Tunnel 2 | . 2 . Scanalyzers . | . . . Garrison Access . | . . . Data Cores Recovered . | . . . Used . | . . . Hacking Detections 5 | . 5 . Full Trace Events 2 | . 2 . Feedback Events . | . . . Feedback Blocked . | . . . Robot Schematics Acquired . | . . . Robots Built . | . . . Authchips . | . . . Time . | . . . Total Robot Build Rating . | . . . Part Schematics Acquired 1 | . 1 . Parts Built . | . . . Authchips . | . . . Time . | . . . Total Part Build Rating . | . . . Parts Repaired . | . . . Time . | . . . Parts Recycled . | . . . Recycled Matter . | . . . Retrieved Matter . | . . . Retrieved Components . | . . . Parts Scanalyzed . | . . . Part Schematics Acquired . | . . . Parts Damaged . | . . . Bothacking | -11 -10 -10 ------------ Run | Jun Mat Min Used RIF Installer . | . . . Robots Hacked . | . . . Non-combat . | . . . Combat . | . . . Robot Hacks Applied . | . . . Relay Couplers Released . | . . . Fabnet Peak Effective % . | . . . Robots Rewired . | . . . Allies Hacked . | . . . Hacks Repelled . | . . . Allies | -11 -10 -10 -------- Run | Jun Mat Min Total Allies . | . . . Largest Group . | . . . Highest-Rated Group . | . . . Highest-Rated Ally . | . . . Total Orders . | . . . Ally Attacks 4 | . . 4 Total Damage 25 | . . 25 Kills . | . . . Allies Corrupted . | . . . Allies Melted . | . . . Intel | -11 -10 -10 ------- Run | Jun Mat Min Robot Analysis Total 2 | . 2 . Derelict Logs Recovered 2 | . . 2 Drone Launches 4 | . . 4 Drone Recoveries 4 | . . 4 Exploration | -11 -10 -10 ------------- Run | Jun Mat Min Turns Passed 2239 | . 1570 669 Spaces Moved 742 | 1 553 188 Core . | . . . Treads 741 | . 553 188 Legs 1 | 1 . . Wheels . | . . . Hover . | . . . Flight . | . . . Fastest Speed 120 | 120 160 320 Average Speed 250 | 120 227 320 Slowest Speed 320 | 120 320 320 Overloaded Moves . | . . . Propulsion Burnouts . | . . . Robots Hopped . | . . . Cave-ins Triggered 1 | . 1 . Exploration Rate (%) 40 | 2 92 28 Regions Visited 2 Branch Regions 1 Pre-discovered Areas 2 | . 2 . Known Exits Taken . | . . . Unknown Exits Taken 2 | 1 1 . Scrap Searched 1 | . . 1 Spaces Dug 6 | . 6 . Terrain Destroyed 52 | . 52 . Melee . | . . . Projectile . | . . . AOE 52 | . 52 . Terrain Rammed . | . . . Walls Destroyed . | . . . Machines Disabled . | . . . Actions | -11 -10 -10 --------- Run | Jun Mat Min Total 980 | . 728 252 Wait 99 | . 41 58 Move 740 | . 552 188 Hop . | . . . Pick Up 22 | . 21 1 Fast Attach 7 | . 6 1 Attach 8 | . 8 . Detach . | . . . Swap 8 | . 5 3 Drop 5 | . 5 . Fire 90 | . 90 . Melee . | . . . Ram . | . . . Kick . | . . . Crush 1 | . . 1 Escape Stasis . | . . . Rewire . | . . . Trap . | . . . Miscellaneous . | . . . Route ------- -11/Junkyard -10/Materials (discovered 4 exits: *Mat x3 / *Min) -10/Mines (discovered 1 exit: Mat) History --------- Turn | Location | Event 1 | -11/Junkyard | Discovered new exit (range 0) 1 | -11/Junkyard | Entered Materials 315 | -10/Materials | Build established: Mutant 326 | -10/Materials | Discovered new exit (range 11) 333 | -10/Materials | Crushed by falling debris 911 | -10/Materials | Discovered new exit (range 6) 997 | -10/Materials | Core integrity fell below 50% 1115 | -10/Materials | Discovered new exit (range 11) 1172 | -10/Materials | Core integrity fell below 20% 1507 | -10/Materials | Discovered new exit (range 15) 1571 | -10/Materials | Entered Mines 1592 | -10/Mines | Met a Derelict bent on vengeance 1597 | -10/Mines | Identified exit to Materials 1675 | -10/Mines | Found the Drone Emporium 1690 | -10/Mines | Found Prototype Device 2060 | -10/Mines | Identified Splice Drone Bay 2152 | -10/Mines | Assembled infested the area 2240 | -10/Mines | Destroyed by as-61537 with Assembled Rifle Last Messages --------------- 02154_ System corrupted: Energy discharge (-32). 02157_ K-01 Serf collects debris. 02171_ System corrupted: Matter fused (-9). 02186_ System corrupted: Matter fused (-8). 02188_ K-01 Serf cleans the Core Extractor. 02222_ System corrupted: Component data lost. 02223_ K-01 Serf cleans the Core Extractor. 02229_ Splice Drone released from Splice Drone Bay. 02229_ Splice Drone injecting as-61537... 02230_ Splice Drone released from Splice Drone Bay. 02230_ Splice Drone sneak attacks. 02230_ Splice Drone injecting as-61537... 02230_ Splice Drone retrieved by Splice Drone Bay. 02233_ Splice Drone released from Splice Drone Bay. 02233_ Splice Drone injecting as-61537... 02234_ Splice Drone released from Splice Drone Bay. 02234_ Splice Drone retrieved by Splice Drone Bay. 02234_ Splice Drone sneak attacks. 02234_ Splice Drone injecting as-61537... 02235_ Splice Drone retrieved by Splice Drone Bay. Map ----- +----------------------------------------------------+ | ## ??# #### #?????## #?????????? | | ?## #??# ## #????## ##?????????? | | ??###???## # ###### #??????????? | | ?????????## #??????????? | | ??????????## #?????????? | | ???????????## ######## #?????????? | | ????????????# ##??????## #?????????? | | ????????????# #????????##### ##?????????? | | ????????????# ####?????????####??????????? | | ????????????# #???????????????????????? | | ????????????#### #???????????????????????? | | ???????????????# #???????????????????????? | | ???????????????# #???????????????????????? | | ???????????????# #???????####????????????? | | ???????????????# #?????## ##???????????? | | ???????????????# #???### ##??????????? | | ???????????????# #??## ###????????? | | ???????????????# #### ##???????? | | ???????????????# """ #???????? | | ???????????????# """ #???????? | | ???????????????####### """ #????????? | | ?????????????????????## #????????? | | ??????????????????????## #????????? | | ??????????????????????## ##????????? | | ?????????????????????## #####?????????? | | ?????????????????????# @##?????????????? | | ?????????????????????# ##?????????????? | | ?????????????????????## #?????????????? | | ??????????????????????## #?????????????? | | ???????????????????????# #?????????????? | | ???????????????????????# a #?????????????? | | ???????????????????????#k ##?????????????? | | ???????????????????????# a#??????????????? | | ???????????????????????# ?????????????? | | ???????????????????????# ???????????? | | ???????????????????????########??????????? | | ?????????????????????????????????????????? | | ?????????????????????????????????????????? | | ?????????????????????????????????????????? | | ?????????????????????????????????????????? | | ?????????????????????????????????????????? | | ?????????????????????????????????????????? | | ?????????????????????????????????????????? | | ?????????????????????????????????????????? | | ?????????????????????????????????????????? | | ?????????????????????????????????????????? | | ?????????????????????????????????????????? | | ?????????????????????????????????????????? | | ?????????????????????????????????????????? | | ?????????????????????????????????????????? | +----------------------------------------------------+ Best States ------------- Heat Dissipation 25 Energy Generation 10 Energy Capacity 125 Matter Stores 300 Matter Capacity 300 Sight Range 16 Terrain Scan Density 10 Core Shielding 20 Evasion (%) 40 Recoil Reduction 2 Item Schematics ----------------- Huge Storage Unit | -10/Materials | Hacked Robot Schematics ------------------ None Fabricated ------------ Nothing Alien Tech Used ----------------- None Achievements -------------- None Challenges ------------ None Game ------ Seed ProcessingCatalystCleaver Manual? 0 Play Time 00:08:28 Cumulative 346.4 hours Start 2023.05.17 @ 00:04:10 End 2023.05.17 @ 00:38:54 Sessions 1 Manual Loads 0 Difficulty Rogue Special Mode None Game No. 495 Rogue 468 Adventurer 4 Explorer 23 Win Type - Total 19 Types 14/0/2/2/1/0/0/0/0 Lore% 78 Gallery% 93 Achievement% 82 Wizard Run 0 Options --------- ASCII 0 Keyboard 1 Movement Numpad Keybinds 0 Fullscreen 1 Font 18/SmallcapsGlow Map View 76x50 Tactical HUD 1 Map Filters NONE Filters NONE Steam 1 RUN: 1cab7725-8b16-4649-a44d-469f1c853d9b